{"text_format":"1","workbook":"xlsx","n_sheets":1,"sheets":["Msg"],"not_rendered":{"charts":0,"images":0,"macros":1,"external_links":0,"defined_names":0,"comments":0,"pivot_tables":0},"unopened":[],"bounds":{"document_bytes":16777216,"sheet_cells":100000,"rows_first":2000,"rows_last":500,"rows_between":2000,"halvings":0,"cell_chars":16384,"cell_head_chars":4096},"cells_cut":0,"cells_raw":0,"read":"whole","date_system":"1900"}

{"sheet":"Msg","index":0,"n_rows":31,"n_cols":8,"rows_kept":31,"cut":false,"hidden":false,"merged":[]}
["اختر","#","الاسم","رقم الموبايل","الرسالة",null,"Contact","Message"]
[false,1,"جاسم الزعابي",5027406,{"$f":"\"السيد ولي الأمر الطالب \"&C2&\"\"","v":"السيد ولي الأمر الطالب جاسم الزعابي"},{"$f":"_xlfn._xlws.FILTER(D2:D31,A2:A31=TRUE,\"\")","v":5056805},{"$f":"IF(F2=\"\",\"\",F2)","v":5056805},{"$f":"_xlfn.XLOOKUP(F2,$D$2:$D$31,$E$2:$E$31)","v":"السيد ولي الأمر الطالب حمد يوسف "}]
[false,2,"حامد  الطنيجي",5030290,{"$f":"\"السيد ولي الأمر الطالب \"&C3&\"\"","v":"السيد ولي الأمر الطالب حامد  الطنيجي"},5050593,{"$f":"IF(F3=\"\",\"\",F3)","v":5050593},{"$f":"_xlfn.XLOOKUP(F3,$D$2:$D$31,$E$2:$E$31)","v":"السيد ولي الأمر الطالب سعيد الكتبي"}]
[true,3,"حمد يوسف ",5056805,"السيد ولي الأمر الطالب حمد يوسف ",5036756,{"$f":"IF(F4=\"\",\"\",F4)","v":5036756},"السيد ولي الأمر الطالب سيف سالم "]
[false,4,"حمدان  الرميثي",5054513,"السيد ولي الأمر الطالب حمدان  الرميثي",null,{"$f":"IF(F5=\"\",\"\",F5)","v":""},{"$error":"#N/A"}]
[false,5,"حمدان راشد ",5074978,"السيد ولي الأمر الطالب حمدان راشد ",null,{"$f":"IF(F6=\"\",\"\",F6)","v":""},{"$error":"#N/A"}]
[false,6,"حمدان الجنيبي",5080358,"السيد ولي الأمر الطالب حمدان الجنيبي",null,{"$f":"IF(F7=\"\",\"\",F7)","v":""},{"$error":"#N/A"}]
[false,7,"راشد  الحوسنى",5084742,"السيد ولي الأمر الطالب راشد  الحوسنى",null,{"$f":"IF(F8=\"\",\"\",F8)","v":""},{"$error":"#N/A"}]
[false,8,"سعيد الكثيري",5032350,"السيد ولي الأمر الطالب سعيد الكثيري",null,{"$f":"IF(F9=\"\",\"\",F9)","v":""},{"$error":"#N/A"}]
[true,9,"سعيد الكتبي",5050593,"السيد ولي الأمر الطالب سعيد الكتبي",null,{"$f":"IF(F10=\"\",\"\",F10)","v":""},{"$error":"#N/A"}]
[false,10,"سلطان حسن",5038895,"السيد ولي الأمر الطالب سلطان حسن",null,{"$f":"IF(F11=\"\",\"\",F11)","v":""},{"$error":"#N/A"}]
[false,11,"سهيل علي",5080806,"السيد ولي الأمر الطالب سهيل علي",null,{"$f":"IF(F12=\"\",\"\",F12)","v":""},{"$error":"#N/A"}]
[false,12,"سيف زايد",5027930,"السيد ولي الأمر الطالب سيف زايد",null,{"$f":"IF(F13=\"\",\"\",F13)","v":""},{"$error":"#N/A"}]
[true,13,"سيف سالم ",5036756,"السيد ولي الأمر الطالب سيف سالم ",null,{"$f":"IF(F14=\"\",\"\",F14)","v":""},{"$error":"#N/A"}]
[false,14,"سيف طلال ",5049457,"السيد ولي الأمر الطالب سيف طلال ",null,{"$f":"IF(F15=\"\",\"\",F15)","v":""},{"$error":"#N/A"}]
[false,15,"صياح سيف",5078475,"السيد ولي الأمر الطالب صياح سيف",null,{"$f":"IF(F16=\"\",\"\",F16)","v":""},{"$error":"#N/A"}]
[false,16,"عبدالرحمن عبدالله",5088424,"السيد ولي الأمر الطالب عبدالرحمن عبدالله",null,{"$f":"IF(F17=\"\",\"\",F17)","v":""},{"$error":"#N/A"}]
[false,17,"عبدالله احمد ",5074737,"السيد ولي الأمر الطالب عبدالله احمد ",null,{"$f":"IF(F18=\"\",\"\",F18)","v":""},{"$error":"#N/A"}]
[false,18,"غانم سيف",5068076,"السيد ولي الأمر الطالب غانم سيف",null,{"$f":"IF(F19=\"\",\"\",F19)","v":""},{"$error":"#N/A"}]
[false,19,"فارس حسن",5079627,"السيد ولي الأمر الطالب فارس حسن",null,{"$f":"IF(F20=\"\",\"\",F20)","v":""},{"$error":"#N/A"}]
[false,20,"منصور صالح",5048428,"السيد ولي الأمر الطالب منصور صالح",null,{"$f":"IF(F21=\"\",\"\",F21)","v":""},{"$error":"#N/A"}]
[false,21,"منصور علي",5028804,"السيد ولي الأمر الطالب منصور علي",null,{"$f":"IF(F22=\"\",\"\",F22)","v":""},{"$error":"#N/A"}]
[false,22,"احمد سعيد بخيت على",5037818,"السيد ولي الأمر الطالب احمد سعيد بخيت على",null,{"$f":"IF(F23=\"\",\"\",F23)","v":""},{"$error":"#N/A"}]
[false,23,"حمدان يوسف سليم العامرى",5052622,"السيد ولي الأمر الطالب حمدان يوسف سليم العامرى",null,{"$f":"IF(F24=\"\",\"\",F24)","v":""},{"$error":"#N/A"}]
[false,24,"اسلام زينهم جابر",5036499,"السيد ولي الأمر الطالب اسلام زينهم جابر",null,{"$f":"IF(F25=\"\",\"\",F25)","v":""},{"$error":"#N/A"}]
[false,25,"خليفة عبدالناصر الحارثي",5055430,"السيد ولي الأمر الطالب خليفة عبدالناصر الحارثي",null,{"$f":"IF(F26=\"\",\"\",F26)","v":""},{"$error":"#N/A"}]
[false,26,"محمد عبدالحميد يسين",5073101,"السيد ولي الأمر الطالب محمد عبدالحميد يسين",null,{"$f":"IF(F27=\"\",\"\",F27)","v":""},{"$error":"#N/A"}]
[false,27,"محمد علي محمد الفقي",5028983,"السيد ولي الأمر الطالب محمد علي محمد الفقي",null,{"$f":"IF(F28=\"\",\"\",F28)","v":""},{"$error":"#N/A"}]
[false,28,"محمد أسامة",5048812,"السيد ولي الأمر الطالب محمد أسامة",null,{"$f":"IF(F29=\"\",\"\",F29)","v":""},{"$error":"#N/A"}]
[false,29,"محمد احمد",5063896,"السيد ولي الأمر الطالب محمد احمد",null,{"$f":"IF(F30=\"\",\"\",F30)","v":""},{"$error":"#N/A"}]
[false,30,"سيف علي",5085599,"السيد ولي الأمر الطالب سيف علي",null,{"$f":"IF(F31=\"\",\"\",F31)","v":""},{"$error":"#N/A"}]